bitfinex/quotes_ETHUSD_20240902
["timestamp","ask_amount","ask_price","bid_price","bid_amount"]
[1725251980793,2.8631,2444.9,2444.6,2.3465]
[1725251981161,0.05072408,2444.8,2444.6,2.3465]
[1725251982496,0.05072408,2444.8,2444.7,0.08180572]
[1725251982699,0.05072408,2444.8,2444.7,6.89136588]
[1725251982870,0.05072408,2444.8,2444.7,5.67363]
[1725251984819,0.05072408,2444.8,2444.7,2.8103]
[1725251993360,0.05072408,2444.8,2444.7,5.67363]
[1725251993651,0.05072408,2444.8,2444.7,6.527343]
[1725251993825,0.05072408,2444.8,2444.7,9.390673]
[1725251994655,5.86254,2445.4,2444.9,2.4416]
[1725251994806,5.86254,2445.4,2445.0,0.55]
[1725251996292,8.72513,2445.4,2445.0,0.55]
[1725251996510,2.86264,2445.3,2445.0,0.55]
[1725251996647,3.0,2445.2,2445.0,0.55]
[1725251997186,3.0,2445.3,2445.0,0.55]
[1725251998361,0.01140876,2445.2,2445.0,0.55]
[1725251998558,3.0,2445.3,2445.0,0.55]
[1725251998973,0.01140876,2445.2,2445.1,2.4147]
[1725251999174,3.0,2445.3,2445.1,2.9647]
[1725251999378,3.0,2445.3,2445.1,2.4147]
[1725251999598,2.25287799,2445.7,2445.1,5.99712328]
[1725251999599,0.01161648,2445.2,2445.1,5.99712328]
[1725251999748,2.86227,2445.7,2445.1,4.13242328]
[1725251999952,2.86227,2445.7,2445.3,2.4943]
[1725252000191,0.01280796,2445.6,2445.3,2.57607779]
[1725252000957,3.01280796,2445.6,2445.3,2.4943]
[1725252001204,5.87509796,2445.6,2445.3,2.4943]
[1725252001554,2.86246,2445.5,2445.3,2.4943]
[1725252001763,7.10195183,2445.6,2445.0,2.4943]
[1725252001764,6.51286183,2445.6,2445.0,2.4943]
[1725252001992,2.8627,2445.3,2445.0,2.4943]
[1725252002498,0.01215921,2445.2,2445.1,2.4943]
[1725252002857,2.8624,2445.5,2445.1,2.4943]
[1725252003281,0.01183305,2445.4,2445.2,0.55]
[1725252006193,0.01183305,2445.4,2445.3,2.354]
[1725252006399,0.01183305,2445.4,2445.3,2.904]
[1725252006607,3.0,2445.6,2445.3,2.904]
[1725252006890,0.01215522,2445.4,2445.3,2.904]
[1725252007085,5.86228,2445.6,2445.3,2.904]
[1725252007281,0.01269792,2445.4,2445.3,2.904]
[1725252007528,5.86228,2445.6,2445.3,2.904]
[1725252007740,0.05128182,2445.4,2445.3,2.904]
[1725252007935,3.0,2445.6,2445.3,2.904]
[1725252008159,0.05126017,2445.4,2445.3,2.904]
[1725252009837,0.04041871,2445.4,2445.3,9.85645129]
[1725252010167,0.04041871,2445.4,2445.3,11.77267829]
[1725252010656,16.64,2445.9,2445.6,2.265]
[1725252010860,16.64,2445.9,2445.7,0.55]
[1725252011154,0.04307933,2445.8,2445.7,0.55]
[1725252012416,0.04307933,2445.8,2445.7,3.41216]
[1725252012713,0.04307933,2445.8,2445.7,5.79276]
[1725252012914,0.04577619,2445.8,2445.7,5.79276]
[1725252013150,0.04577619,2445.8,2445.7,2.9306]
[1725252013352,0.04577619,2445.8,2445.7,4.08837814]
[1725252014257,0.04307933,2445.8,2445.7,4.08837814]
[1725252015154,0.04307933,2445.8,2445.7,2.9306]
[1725252015510,0.04307933,2445.8,2444.7,2.3806]
[1725252015511,5.34715,2445.3,2444.7,2.3806]
[1725252015710,2.86282,2445.2,2444.7,2.3806]
[1725252015957,2.90752894,2445.2,2444.7,2.3806]
[1725252016666,0.04470894,2445.2,2444.7,2.3806]
[1725252016866,0.04470894,2445.2,2444.7,5.24392]
[1725252017272,2.90745894,2445.2,2444.7,2.3806]
[1725252017562,2.90745894,2445.2,2444.8,0.524397]
[1725252018170,2.90745894,2445.2,2444.9,0.55]
[1725252019061,2.90745894,2445.2,2444.8,0.55]
[1725252020231,2.90745894,2445.2,2444.8,1.415735]
[1725252020622,0.04470894,2445.2,2444.8,1.415735]
[1725252020944,8.20985,2445.3,2444.8,1.415735]
[1725252021122,0.04402358,2445.1,2444.8,1.415735]
[1725252021517,5.34715,2445.3,2444.8,1.415735]
[1725252021757,0.04226322,2445.0,2444.9,0.6659645]
[1725252021959,5.72538,2445.3,2444.9,1.2159645]
[1725252022164,5.72538,2445.3,2444.9,0.55]
[1725252022165,0.04228409,2445.0,2444.9,0.55]
[1725252022868,2.86276,2445.2,2444.9,0.55]
[1725252023035,0.04228409,2445.0,2444.9,0.55]
[1725252023241,2.86265,2445.3,2444.9,0.55]
[1725252023440,0.04228409,2445.0,2444.9,0.55]
[1725252023641,2.86265,2445.3,2444.9,1.2159645]
[1725252023841,0.04228409,2445.0,2444.9,0.55]
[1725252024042,2.86265,2445.3,2444.9,0.55]
[1725252024268,0.04228409,2445.0,2444.9,0.55]
[1725252024493,2.86265,2445.3,2444.9,0.55]
[1725252024777,0.04228409,2445.0,2444.9,0.55]
[1725252024925,5.72536,2445.3,2444.9,1.2159645]
[1725252025121,0.04228409,2445.0,2444.9,0.55]
[1725252025321,2.86265,2445.3,2444.9,0.55]
[1725252025568,0.04228409,2445.0,2444.9,0.55]
[1725252025775,2.86265,2445.3,2444.9,0.55]
[1725252026078,5.72535,2445.3,2444.9,0.55]
[1725252026230,0.04252718,2445.2,2444.9,0.55]
[1725252026426,5.72535,2445.3,2444.9,1.2159645]
[1725252026742,0.04233887,2445.1,2444.9,1.2159645]
[1725252026938,2.86278,2445.2,2444.9,0.55]
[1725252027138,0.04228409,2445.0,2444.9,0.55]
[1725252027374,2.86278,2445.2,2444.8,0.55]
[1725252027576,0.04228409,2445.0,2444.8,1.873397]
[1725252027871,0.04095314,2444.9,2444.8,0.55]
[1725252028055,2.86278,2445.2,2444.8,0.55]
[1725252028368,0.04095314,2444.9,2444.8,0.55]
[1725252028544,2.86278,2445.2,2444.8,0.55]
[1725252028746,0.04095314,2444.9,2444.8,1.42168879]
[1725252028943,2.86278,2445.2,2444.8,1.42168879]
[1725252029422,0.04092917,2445.1,2444.8,1.42168879]
[1725252031870,0.08088501,2445.1,2444.8,1.42168879]
[1725252032023,0.08088501,2445.1,2444.9,0.66656188]
[1725252032875,0.08075545,2445.0,2444.9,0.66656188]
[1725252033046,5.72536,2445.3,2444.9,1.21656188]
[1725252033251,0.08075545,2445.0,2444.9,1.21656188]
[1725252033455,2.86265,2445.3,2444.9,1.21656188]
[1725252033692,3.0,2445.5,2445.1,2.3522]
[1725252033979,3.0,2445.6,2445.2,0.63178187]
[1725252034143,3.0,2445.6,2445.2,0.55]
[1725252034993,3.0,2445.6,2445.4,2.3522]
[1725252035180,16.64,2445.9,2445.4,2.94421758]
[1725252035348,16.64,2445.9,2445.5,5.76458]
[1725252035549,16.64,2445.9,2445.6,0.87087976]
[1725252035860,19.50193,2445.9,2445.5,2.98397246]
[1725252036383,19.50193,2445.9,2445.5,2.9022]
[1725252036991,16.64,2445.9,2445.5,2.9022]
[1725252037179,16.64,2445.9,2445.5,2.98397112]
[1725252037385,16.64,2445.9,2445.6,0.58463711]
[1725252037742,0.08143532,2445.8,2445.6,0.58463711]
[1725252038657,0.08143532,2445.8,2445.5,2.9022]
[1725252040381,0.08143532,2445.8,2445.5,2.98397224]
[1725252041678,0.08143532,2445.8,2445.5,2.9022]
[1725252042851,0.08143532,2445.8,2445.5,5.84630234]
[1725252043051,0.08143532,2445.8,2445.6,0.87087023]
[1725252043286,0.08143532,2445.8,2445.7,5.16366]
[1725252043479,0.08143532,2445.8,2445.7,5.71366]
[1725252043950,0.08143532,2445.8,2445.7,5.79542841]
[1725252045404,0.08143532,2445.8,2445.7,8.6722849]
[1725252045716,0.08143532,2445.8,2445.7,9.91282441]
[1725252046391,0.08143532,2445.8,2445.7,9.83105951]
[1725252052515,0.08143532,2445.8,2445.7,0.55]
[1725252052710,0.08143532,2445.8,2445.6,0.55]
[1725252052947,0.08143532,2445.8,2445.5,2.3298]
[1725252054518,0.08143532,2445.8,2445.6,0.55]
[1725252055025,2.86253,2445.4,2444.9,2.3525]
[1725252055228,0.08161178,2445.3,2444.9,2.4092]
[1725252055429,2.86217,2445.7,2445.0,0.7307211]
[1725252055635,3.08207349,2445.6,2445.0,0.64892733]
[1725252055821,3.08207349,2445.6,2445.0,2.4092]
[1725252056255,5.94438349,2445.6,2445.0,2.4092]
[1725252056459,5.94438349,2445.6,2445.1,0.55]
[1725252056664,4.43078659,2445.6,2445.1,0.55]
[1725252056823,3.08207349,2445.6,2445.3,2.4092]
[1725252057166,3.0,2445.5,2445.3,2.4092]
[1725252057333,0.08207349,2445.6,2445.3,2.4092]
[1725252057667,2.86217,2445.7,2445.3,2.4092]
[1725252057851,0.08185103,2445.5,2445.3,2.4092]
[1725252060431,0.08185103,2445.5,2445.3,5.27181]
[1725252061278,3.0,2445.8,2445.3,5.27181]
[1725252061428,0.0818148,2445.4,2445.3,5.27181]
[1725252061630,3.0,2445.8,2445.3,5.82181]
[1725252061957,2.61842063,2445.7,2445.3,5.27181]
[1725252062144,3.0,2445.6,2445.3,2.4092]
[1725252062339,0.56184206,2445.5,2445.1,0.55]
[1725252062572,0.64375747,2445.5,2445.0,0.55]
[1725252062870,0.08191541,2445.5,2445.0,0.55]
[1725252063866,0.08191541,2445.5,2445.0,3.41289]
[1725252064777,0.08191541,2445.5,2445.0,0.55]
[1725252064985,0.08191541,2445.5,2444.9,2.3094]
[1725252064986,2.86271,2445.3,2444.9,2.3094]
[1725252065332,0.08170608,2445.2,2444.9,2.3094]
[1725252065782,2.86271,2445.3,2444.9,2.3094]
[1725252066236,0.08170608,2445.2,2444.9,2.3094]
[1725252066436,2.86271,2445.3,2444.9,2.3094]
[1725252066658,0.08170608,2445.2,2444.9,2.3094]
[1725252066863,2.86271,2445.3,2444.9,2.3094]
[1725252067175,0.08170608,2445.2,2444.9,2.3094]
[1725252067644,0.08165295,2445.1,2444.9,2.3094]
[1725252067849,3.0,2445.4,2444.9,2.3094]
[1725252068051,0.08160842,2445.3,2444.9,2.3094]
[1725252069874,0.08160842,2445.3,2444.9,5.17249]
[1725252070670,0.08160842,2445.3,2445.2,2.2792]
[1725252070892,0.08160842,2445.3,2445.2,5.69195]
[1725252071178,0.08160842,2445.3,2445.2,5.77373281]
[1725252071382,5.86206,2445.8,2445.2,5.69195]
[1725252071579,0.08162784,2445.3,2445.2,5.69195]
[1725252071778,3.0,2445.6,2445.3,2.86262]
[1725252071981,3.0,2445.8,2445.3,5.72519]
[1725252072142,3.0,2445.8,2445.4,2.4036]
[1725252072339,8.362136,2445.8,2445.4,2.4036]
[1725252072745,2.86216,2445.7,2445.4,2.4036]
[1725252073856,2.86216,2445.7,2445.2,0.55]
[1725252074065,5.19305473,2445.7,2445.3,0.55]
[1725252074467,8.05528473,2445.7,2445.2,0.55]
[1725252074686,5.19305473,2445.7,2445.2,0.55]
[1725252075070,2.33089473,2445.7,2445.2,0.55]
[1725252075268,3.0,2445.8,2445.4,2.4592]
[1725252075469,3.0,2445.8,2445.5,0.55]
[1725252077606,3.0,2445.8,2445.5,3.41238]
[1725252077808,3.0,2445.8,2445.6,2.8026157]
[1725252078108,3.0,2445.8,2445.7,0.55]
[1725252080080,16.64,2445.9,2445.7,0.55]
[1725252082670,0.08179753,2445.8,2445.7,0.55]
[1725252085946,0.08179753,2445.8,2445.6,2.4532]
[1725252093128,0.08179753,2445.8,2445.7,2.86216]
[1725252093328,0.08179753,2445.8,2445.7,4.229921]
[1725252094508,0.08179753,2445.8,2445.7,3.41216]
[1725252094860,0.08179753,2445.8,2445.7,0.55]
[1725252096564,0.08179753,2445.8,2445.7,3.41216]
[1725252098589,0.08179753,2445.8,2445.7,5.85206]
[1725252101513,0.08179753,2445.8,2445.7,8.71422]
[1725252101721,0.08179753,2445.8,2445.7,9.585642]
[1725252109809,11.34511052,2445.9,2445.8,5.72408]
[1725252110011,1.27948127,2447.4,2446.9,2.4775]
[1725252110206,4.56472362,2447.5,2447.0,0.533827]
[1725252110207,4.13960127,2447.5,2447.0,0.533827]
[1725252110430,2.86012,2447.5,2446.9,2.4775]
[1725252110606,2.86012,2447.5,2446.9,5.33815]
[1725252111153,2.4829,2447.6,2447.1,2.86044]
[1725252111803,2.85989,2447.7,2447.1,2.86044]
[1725252112197,3.0,2447.6,2447.2,2.8604]
[1725252113922,3.834279,2447.6,2447.0,6.35282298]
[1725252114138,2.66515615,2447.5,2447.0,0.55]
[1725252114346,0.64994352,2447.4,2447.0,0.55]
[1725252115344,0.64994352,2447.4,2447.0,3.41064]
[1725252115656,3.834279,2447.6,2447.0,6.2712]
[1725252116740,3.834279,2447.6,2447.1,2.86049]
[1725252116958,3.834279,2447.6,2447.2,2.86036]
[1725252117126,3.0,2447.6,2447.2,2.86036]
[1725252117641,0.06483551,2447.5,2447.2,2.86036]
[1725252121417,0.06483551,2447.5,2447.0,3.41055]
[1725252121618,0.06483551,2447.5,2447.0,6.27112]
[1725252121831,0.06483551,2447.5,2447.0,3.41055]
[1725252122560,0.06483551,2447.5,2447.0,6.27112]
[1725252123062,0.06483551,2447.5,2447.0,3.41055]
[1725252124570,0.06483551,2447.5,2447.0,0.55]
[1725252124571,2.86043,2447.2,2447.0,0.55]
[1725252124771,2.86043,2447.2,2446.8,7.44]
[1725252124933,0.06562954,2447.1,2446.8,7.44]
[1725252126326,2.8604,2447.3,2446.8,7.44]
[1725252126527,0.06543803,2447.0,2446.8,7.44]
[1725252126759,2.8604,2447.3,2446.8,7.44]
[1725252126951,0.06538498,2446.9,2446.8,7.44]
[1725252127127,5.7208,2447.3,2446.8,0.55]
[1725252127128,2.86042,2447.2,2446.8,0.55]
[1725252127378,0.06531938,2446.9,2446.8,0.55]
[1725252127573,0.06531938,2446.9,2446.4,10.30127]
[1725252127574,2.86096,2446.8,2446.4,7.44]
[1725252127874,0.06520599,2446.7,2446.4,7.44]
[1725252128075,2.86096,2446.8,2446.4,7.44]
[1725252128279,0.06495818,2446.7,2446.4,7.44]
[1725252128619,2.86096,2446.8,2446.4,7.44]
[1725252128814,0.06489783,2446.6,2446.4,7.44]
[1725252129099,2.86096,2446.8,2446.4,7.44]
[1725252129310,0.06495089,2446.7,2446.4,7.44]
[1725252129605,2.86096,2446.8,2446.4,7.44]
[1725252129763,2.86076,2446.9,2446.4,7.44]
[1725252130110,0.06493104,2446.8,2446.5,2.8744]
[1725252130261,2.86065,2447.0,2446.5,2.8744]
[1725252130469,3.0647144,2446.9,2446.6,2.94284058]
[1725252130683,0.0647144,2446.9,2446.7,0.55]
[1725252130862,5.86052,2447.1,2446.7,0.55]
[1725252131098,0.06477473,2447.0,2446.7,0.55]
[1725252133440,2.92541473,2447.0,2446.7,0.55]
[1725252133756,2.92541473,2447.0,2446.5,2.3244]
[1725252133757,3.0,2446.9,2446.6,0.55]
[1725252133905,3.06494767,2446.9,2446.6,0.55]
[1725252135703,0.06494767,2446.9,2446.6,0.55]
[1725252139110,0.06494767,2446.9,2446.6,3.4111]
[1725252139351,3.0,2447.1,2446.7,2.2551]
[1725252139552,0.06499881,2446.8,2446.7,2.2551]
[1725252139727,3.0,2447.1,2446.7,2.8051]
[1725252139938,0.06499881,2446.8,2446.7,2.2551]
[1725252140143,3.0,2447.1,2446.7,2.8051]
[1725252140456,0.06499881,2446.8,2446.7,2.2551]
[1725252140760,0.06499881,2446.8,2446.7,2.8051]
[1725252140926,3.0,2447.1,2446.7,3.42672]
[1725252141130,0.06499881,2446.8,2446.7,2.8051]
[1725252141348,3.0,2447.1,2446.7,2.8051]
[1725252141644,0.06501339,2446.8,2446.7,2.8051]
[1725252141857,5.86054,2447.1,2446.7,2.8051]
[1725252142472,0.06512677,2447.0,2446.7,2.8051]
[1725252158339,0.06512677,2447.0,2446.7,3.3799055]
[1725252158637,0.06512677,2447.0,2446.9,2.3619]
[1725252158968,3.0,2447.3,2446.9,2.9119]
[1725252159164,0.06514397,2447.0,2446.9,2.9119]
[1725252159472,3.0,2447.3,2446.9,2.9119]
[1725252159675,0.06514397,2447.0,2446.9,2.9119]
[1725252159826,3.0,2447.3,2446.9,3.49735093]
[1725252160024,0.06514397,2447.0,2446.9,2.9119]
[1725252160727,3.0,2447.3,2446.9,2.9119]
[1725252160926,0.06525008,2447.2,2446.9,2.9119]
[1725252161127,3.0,2447.3,2446.9,2.9119]
[1725252161397,0.06506758,2447.1,2446.9,2.9119]
[1725252161580,3.0,2447.3,2446.9,3.49735093]
[1725252161734,3.0,2447.3,2446.9,2.9119]
[1725252162229,0.06512064,2447.2,2446.9,2.9119]
[1725252162769,3.0,2447.3,2446.9,2.9119]
[1725252162933,0.06506758,2447.1,2446.9,2.9119]
[1725252163134,3.0,2447.3,2446.9,3.49735093]
[1725252163344,3.0,2447.3,2446.9,2.9119]
[1725252163528,0.06512064,2447.2,2446.9,2.9119]
[1725252163726,3.0,2447.3,2446.9,2.9119]
[1725252164125,0.06525008,2447.2,2446.9,2.9119]
[1725252164665,0.06506758,2447.1,2446.9,2.9119]
[1725252165029,3.0,2447.3,2446.9,2.9119]
[1725252165272,0.06501451,2447.0,2446.9,3.49735093]
[1725252165502,3.0,2447.3,2446.9,2.9119]
[1725252165722,0.06501451,2447.0,2446.9,2.9119]
[1725252166016,0.06514397,2447.0,2446.9,2.9119]
[1725252166233,3.0,2447.3,2446.9,2.9119]
[1725252166512,0.06514397,2447.0,2446.9,2.9119]
[1725252166712,3.0,2447.3,2446.9,3.49735093]
[1725252166913,0.06514397,2447.0,2446.9,2.9119]
[1725252167086,3.0,2447.3,2446.9,2.9119]
[1725252167295,0.06501451,2447.0,2446.9,2.9119]
[1725252167485,3.0,2447.3,2446.9,2.9119]
[1725252167907,0.06512064,2447.2,2446.9,2.9119]
[1725252168221,3.0,2447.3,2446.9,2.9119]
[1725252168380,0.06506758,2447.1,2446.9,2.9119]
[1725252168579,3.0,2447.3,2446.9,2.9119]
[1725252168811,0.06501451,2447.0,2446.9,2.9119]
[1725252169070,3.0,2447.3,2446.9,3.49735093]
[1725252169860,0.06512064,2447.2,2446.9,3.49735093]
[1725252170031,0.06512064,2447.2,2447.1,2.2583]
[1725252170239,4.56459362,2447.6,2447.1,2.2583]
[1725252170240,3.0,2447.5,2447.1,2.2583]
[1725252170440,3.0,2447.5,2447.3,2.4179]
[1725252171369,3.0,2447.7,2447.3,2.4179]
[1725252171746,5.39878068,2447.8,2447.3,2.4179]
[1725252171926,2.85977,2447.8,2447.3,2.4179]
[1725252172274,5.71958,2447.8,2447.3,2.4179]
[1725252172774,0.06549518,2447.7,2447.3,2.4179]
[1725252172956,2.85985,2447.7,2447.3,2.4179]
[1725252173171,2.92553156,2447.6,2447.3,2.4179]
[1725252173482,2.92553156,2447.6,2447.0,4.07654896]
[1725252173483,2.86038,2447.3,2447.0,2.257]
[1725252173829,0.06569008,2447.2,2447.0,2.257]
[1725252174032,5.7205,2447.4,2447.0,2.257]
[1725252174529,2.9259037,2447.3,2447.0,2.257]
[1725252174726,2.86052,2447.1,2446.8,7.44]
[1725252174931,2.86042,2447.2,2446.8,7.44]
[1725252174932,2.86042,2447.2,2446.9,2.257]
[1725252175141,0.0654545,2447.0,2446.9,2.257]
[1725252175383,5.7209,2447.2,2446.9,2.257]
[1725252175531,0.06524032,2447.1,2446.9,2.257]
[1725252175739,2.86042,2447.2,2446.9,2.257]
[1725252175740,0.06516236,2447.0,2446.9,2.257]
[1725252176048,5.72092,2447.2,2446.9,2.257]
[1725252176248,0.06516236,2447.0,2446.9,2.257]
[1725252176459,5.7209,2447.2,2446.9,2.257]
[1725252176661,0.06516236,2447.0,2446.9,2.257]
[1725252176986,2.86055,2447.1,2446.9,2.257]
[1725252177187,0.06529182,2447.0,2446.9,2.257]
[1725252177401,2.92593182,2447.0,2446.9,2.257]
[1725252183020,2.92593182,2447.0,2446.6,2.3073]
[1725252183322,2.92593182,2447.0,2445.8,2.57681771]
[1725252183323,2.86133,2446.5,2445.9,2.3073]
[1725252183519,1.21597896,2446.8,2445.9,2.3073]
[1725252183520,2.86155,2446.3,2445.9,2.3073]
[1725252183803,0.06453155,2446.2,2445.9,2.3073]
[1725252184064,2.86155,2446.3,2445.9,2.3073]
[1725252184267,0.06476198,2446.1,2445.9,2.3073]
[1725252184419,2.86155,2446.3,2445.9,2.3073]
[1725252184623,0.06470888,2446.0,2445.9,2.3073]
[1725252184864,2.86155,2446.3,2445.9,2.3073]
[1725252185065,2.86155,2446.3,2446.0,0.23073]
[1725252185252,2.86155,2446.3,2446.1,0.55]
[1725252185949,2.86155,2446.3,2445.9,2.3073]
[1725252186264,2.86164,2446.2,2445.9,2.3073]
[1725252187755,0.0642243,2446.1,2445.9,2.3073]
[1725252187959,0.0642243,2446.1,2445.9,2.53803]
[1725252188673,2.9259843,2446.1,2445.9,2.3073]
[1725252190000,2.86181,2446.0,2445.5,19.81]
[1725252190207,2.862,2445.9,2445.6,2.3385]
[1725252190494,0.0634177,2445.9,2445.6,2.3385]
[1725252190657,0.0634177,2445.9,2445.6,2.42027392]
[1725252191278,2.86165,2446.2,2445.6,2.42027392]
[1725252191483,0.06327454,2445.8,2445.7,0.55]
[1725252191687,2.86165,2446.2,2445.7,0.55]
[1725252192065,0.0633609,2446.1,2445.8,2.2639]
[1725252192406,0.0633609,2446.1,2446.0,2.2639]
[1725252192745,3.0,2446.3,2446.0,2.2639]
[1725252192950,0.06336863,2446.1,2446.0,2.2639]
[1725252193151,3.0,2446.3,2446.0,3.4480849]
[1725252193410,0.06336863,2446.1,2446.0,2.8980849]
[1725252193695,0.06337317,2446.1,2446.0,2.8139]
[1725252193902,3.0,2446.3,2446.0,2.8139]
[1725252194052,0.06344841,2446.1,2446.0,2.8139]
[1725252194255,3.0,2446.3,2446.0,2.8139]
[1725252194486,0.06343631,2446.2,2446.0,2.8139]
[1725252194862,3.0,2446.3,2446.0,2.8139]
[1725252195080,0.06347758,2446.1,2446.0,2.8139]
[1725252195305,5.86131,2446.5,2446.0,3.5030839]
[1725252195588,5.86131,2446.5,2446.0,2.8139]
[1725252195905,0.06357619,2446.4,2446.0,2.8139]
[1725252197167,0.06357619,2446.4,2446.1,0.0817585]
[1725252197364,0.06357619,2446.4,2446.2,0.55]
[1725252200375,2.92494619,2446.4,2446.2,0.55]
[1725252200685,2.92494619,2446.4,2445.9,2.3692]
[1725252200686,2.86158,2446.2,2445.9,2.3692]
[1725252201210,0.06381374,2446.1,2445.9,2.3692]
[1725252202694,2.92551374,2446.1,2445.9,2.3692]
[1725252203605,0.06381374,2446.1,2445.9,2.3692]
[1725252203815,2.92551374,2446.1,2445.9,2.3692]
[1725252205998,0.06381374,2446.1,2445.9,2.3692]
[1725252206204,0.06381374,2446.1,2445.9,2.7277179]
[1725252207612,0.06381374,2446.1,2446.0,0.55]
[1725252207903,2.86149,2446.3,2446.0,0.55]
[1725252208274,0.0636262,2446.2,2446.0,0.55]
[1725252208607,2.86149,2446.3,2446.0,0.55]
[1725252208807,0.06357311,2446.1,2446.0,2.937]
[1725252208970,3.0,2446.3,2446.0,2.937]
[1725252209190,3.0,2446.3,2446.1,2.2975]
[1725252209391,0.06366194,2446.2,2446.1,2.2975]
[1725252209591,3.0,2446.3,2446.1,2.2975]
[1725252209893,0.0636262,2446.2,2446.1,2.2975]
[1725252210289,3.0,2446.3,2446.1,2.2975]
[1725252210489,0.0636262,2446.2,2446.1,2.2975]
[1725252210785,5.86146,2446.3,2446.1,2.2975]
[1725252211053,0.0636262,2446.2,2446.1,2.2975]
[1725252211207,5.86146,2446.3,2446.1,2.2975]
[1725252211529,0.0636262,2446.2,2446.1,2.2975]
[1725252211890,5.86146,2446.3,2446.1,2.2975]
[1725252212303,0.06366266,2446.2,2446.1,2.2975]
[1725252212704,5.86146,2446.3,2446.1,2.2975]
[1725252212931,0.0636984,2446.2,2446.1,2.2975]
[1725252213437,0.06366995,2446.2,2446.1,2.2975]
[1725252213639,5.86146,2446.3,2446.1,2.2975]
[1725252213792,0.06366995,2446.2,2446.1,2.2975]
[1725252214096,5.86146,2446.3,2446.1,2.2975]
[1725252214345,2.92526995,2446.2,2446.0,0.55]
[1725252217404,5.78695995,2446.2,2446.0,0.55]
[1725252217703,2.92526995,2446.2,2446.0,0.55]
[1725252218061,5.78691995,2446.2,2446.0,0.55]
[1725252218374,2.86169,2446.1,2446.0,0.55]
[1725252218688,2.92530614,2446.1,2446.0,0.55]
[1725252219071,0.06361614,2446.1,2446.0,0.55]
[1725252219707,2.92530614,2446.1,2446.0,0.55]
[1725252226432,0.94230675,2446.1,2445.6,2.4002]
[1725252226632,2.86212,2445.8,2445.6,2.4002]
[1725252226832,0.06326561,2445.7,2445.6,2.4002]
[1725252227063,2.86212,2445.8,2445.6,2.4002]
[1725252227233,0.06324373,2445.7,2445.6,2.4002]
[1725252227434,2.86212,2445.8,2445.6,2.4002]
[1725252227666,0.06330894,2445.7,2445.6,2.4002]
[1725252227849,2.86212,2445.8,2445.6,2.9502]
[1725252228078,0.06330894,2445.7,2445.6,2.9502]
[1725252228286,2.86212,2445.8,2445.6,2.9502]
[1725252228633,0.06324373,2445.7,2445.6,2.9502]
[1725252228834,2.86212,2445.8,2445.6,2.9502]
[1725252229084,0.06316351,2445.7,2445.6,2.9502]
[1725252229290,2.86212,2445.8,2445.6,2.9502]
[1725252229518,0.06301038,2445.7,2445.6,2.9502]
[1725252229869,2.86193,2445.9,2445.6,2.9502]
[1725252230069,0.06306349,2445.8,2445.6,2.9502]
[1725252230315,2.92510349,2445.8,2445.6,2.9502]
[1725252230717,0.06306349,2445.8,2445.7,2.4754]
[1725252230882,0.06306349,2445.8,2445.7,0.63176242]
[1725252231211,2.86159,2446.2,2445.8,2.4754]
[1725252231412,5.86153,2446.3,2446.0,2.4754]
[1725252231572,2.86158,2446.2,2446.0,2.4754]
[1725252231916,3.0,2446.1,2446.0,2.4754]
[1725252232802,3.06192052,2446.1,2446.0,2.4754]
[1725252235300,5.92361052,2446.1,2446.0,2.4754]
[1725252239991,3.06192052,2446.1,2446.0,2.4754]
[1725252241224,5.92361052,2446.1,2446.0,2.4754]
[1725252241741,3.06192052,2446.1,2446.0,2.4754]
[1725252241954,0.06314842,2446.1,2446.0,2.4754]
[1725252242271,5.86147,2446.3,2446.0,2.4754]
[1725252242423,0.06334807,2446.2,2446.0,2.4754]
[1725252242780,5.86147,2446.3,2446.0,2.4754]
[1725252242926,0.06316548,2446.1,2446.0,2.4754]
[1725252243568,5.86147,2446.3,2446.0,2.4754]
[1725252243739,0.06316548,2446.1,2446.0,2.4754]
[1725252244236,5.86147,2446.3,2446.0,2.4754]
[1725252244421,0.06321858,2446.2,2446.0,2.4754]
[1725252244622,5.86147,2446.3,2446.0,2.4754]
[1725252244822,0.06317342,2446.2,2446.0,2.4754]
[1725252245064,5.86147,2446.3,2446.0,2.4754]
[1725252245221,0.06317341,2446.2,2446.0,2.4754]
[1725252245423,5.86147,2446.3,2446.0,2.4754]
[1725252245622,0.06330291,2446.2,2446.0,2.4754]
[1725252245860,5.86147,2446.3,2446.0,2.4754]
[1725252246064,0.0633029,2446.2,2446.0,2.4754]
[1725252246267,5.86147,2446.3,2446.0,2.4754]
[1725252246423,0.0633029,2446.2,2446.0,2.4754]
[1725252246623,5.86147,2446.3,2446.0,2.4754]
[1725252246836,0.06332549,2446.2,2446.0,2.4754]
[1725252247058,5.86147,2446.3,2446.0,2.4754]
[1725252247268,0.063196,2446.2,2446.0,2.4754]
[1725252247562,3.0,2446.3,2446.0,3.009143]
[1725252247765,5.86129,2446.5,2446.2,2.4688]
[1725252248474,6.42600736,2446.5,2445.9,2.4688]
[1725252248622,2.86159,2446.2,2445.9,2.4688]
[1725252250126,5.72328,2446.2,2445.9,2.4688]
[1725252250334,2.8617,2446.1,2445.9,2.4688]
[1725252251720,2.86159,2446.2,2445.9,2.4688]
[1725252252658,2.86141,2446.4,2445.9,2.4688]
[1725252252875,3.0,2446.3,2445.9,2.4688]
[1725252253190,3.0,2446.3,2446.1,2.4999]
[1725252259033,5.86123,2446.5,2446.1,2.4999]
[1725252261188,2.86153,2446.3,2446.1,2.4999]
[1725252262743,2.9228137,2446.2,2446.1,2.4999]
[1725252263787,0.0612337,2446.2,2446.1,2.4999]